[Event "Early-Titled-Tuesday-Blitz-February-13-2024"]
[Site "Chess.com"]
[Date "2024.02.13"]
[Round "6"]
[White "DucksParadise"]
[Black "NowInChess"]
[Result "0-1"]
[WhiteElo "2495"]
[BlackElo "2329"]
[TimeControl "180+1"]
[EndTime "9:05:50 PST"]
[Termination "NowInChess won by resignation"]

1. e4 {[%clk 0:03:00.9]} 1... e6 {[%clk 0:03:00]} 2. d4 {[%clk 0:02:59.9]} 2...
d5 {[%clk 0:02:59.9]} 3. Nd2 {[%clk 0:02:59.1]} 3... Nc6 {[%clk 0:02:59.8]} 4.
Ngf3 {[%clk 0:02:58.3]} 4... Nf6 {[%clk 0:02:59.8]} 5. e5 {[%clk 0:02:58.2]}
5... Nd7 {[%clk 0:02:59.9]} 6. c3 {[%clk 0:02:56]} 6... f6 {[%clk 0:03:00.1]} 7.
exf6 {[%clk 0:02:56.1]} 7... Qxf6 {[%clk 0:03:01]} 8. Bb5 {[%clk 0:02:56.4]}
8... Bd6 {[%clk 0:03:00.3]} 9. O-O {[%clk 0:02:55.9]} 9... O-O {[%clk
0:02:57.1]} 10. Qe2 {[%clk 0:02:50.9]} 10... e5 {[%clk 0:02:55.9]} 11. Bxc6
{[%clk 0:02:50.4]} 11... bxc6 {[%clk 0:02:50.1]} 12. dxe5 {[%clk 0:02:49.6]}
12... Nxe5 {[%clk 0:02:49.9]} 13. Nxe5 {[%clk 0:02:50]} 13... Bxe5 {[%clk
0:02:44.6]} 14. Nf3 {[%clk 0:02:48.6]} 14... Bd6 {[%clk 0:02:37.8]} 15. Bg5
{[%clk 0:02:41.8]} 15... Qg6 {[%clk 0:02:33.9]} 16. Qe3 {[%clk 0:02:33.1]} 16...
Rxf3 {[%clk 0:02:23.5]} 17. gxf3 {[%clk 0:02:23.8]} 17... h6 {[%clk 0:02:23]}
18. f4 {[%clk 0:02:22.2]} 18... hxg5 {[%clk 0:02:13.1]} 19. fxg5 {[%clk
0:02:23.1]} 19... Bf5 {[%clk 0:02:02.5]} 20. f4 {[%clk 0:02:20.6]} 20... Re8
{[%clk 0:01:57.6]} 21. Qxa7 {[%clk 0:02:18]} 21... Bxf4 {[%clk 0:01:52]} 0-1

[Event "Early-Titled-Tuesday-Blitz-February-13-2024"]
[Site "Chess.com"]
[Date "2024.02.13"]
[Round "6"]
[White "SmirnovTimofey2000"]
[Black "ajeale2"]
[Result "0-1"]
[WhiteElo "1988"]
[BlackElo "2473"]
[TimeControl "180+1"]
[EndTime "9:06:31 PST"]
[Termination "ajeale2 won by resignation"]

1. e4 {[%clk 0:02:55.3]} 1... e6 {[%clk 0:02:57.4]} 2. d4 {[%clk 0:02:55.1]}
2... d5 {[%clk 0:02:58]} 3. Nc3 {[%clk 0:02:55]} 3... Nf6 {[%clk 0:02:56.8]} 4.
e5 {[%clk 0:02:52.1]} 4... Nfd7 {[%clk 0:02:56.7]} 5. Nf3 {[%clk 0:02:52.7]}
5... c5 {[%clk 0:02:57.3]} 6. Bg5 {[%clk 0:02:53.2]} 6... Qa5 {[%clk 0:02:51.8]}
7. Bd2 {[%clk 0:02:46.9]} 7... Qb6 {[%clk 0:02:46.3]} 8. a3 {[%clk 0:02:36.4]}
8... cxd4 {[%clk 0:02:43.2]} 9. Nb5 {[%clk 0:02:21.8]} 9... Nc6 {[%clk
0:02:41.2]} 10. a4 {[%clk 0:02:02.3]} 10... a6 {[%clk 0:02:41.1]} 11. Nbxd4
{[%clk 0:01:38.5]} 11... Nxd4 {[%clk 0:02:36.3]} 12. a5 {[%clk 0:01:30.4]} 12...
Qxb2 {[%clk 0:02:29.9]} 13. Rb1 {[%clk 0:01:27.2]} 13... Nxc2+ {[%clk
0:02:02.8]} 14. Ke2 {[%clk 0:01:26.6]} 14... Nd4+ {[%clk 0:01:59.5]} 15. Ke1
{[%clk 0:01:11]} 15... Nxf3+ {[%clk 0:01:57]} 16. gxf3 {[%clk 0:01:11.9]} 0-1

[Event "Early-Titled-Tuesday-Blitz-February-13-2024"]
[Site "Chess.com"]
[Date "2024.02.13"]
[Round "6"]
[White "nekotyanof"]
[Black "Lion_DL"]
[Result "0-1"]
[WhiteElo "2634"]
[BlackElo "2486"]
[TimeControl "180+1"]
[EndTime "9:06:38 PST"]
[Termination "Lion_DL won by resignation"]

1. e4 {[%clk 0:03:00.9]} 1... c5 {[%clk 0:02:59.6]} 2. Nf3 {[%clk 0:03:00.8]}
2... e6 {[%clk 0:03:00.3]} 3. Nc3 {[%clk 0:03:00]} 3... a6 {[%clk 0:02:59.4]} 4.
d4 {[%clk 0:02:58.9]} 4... cxd4 {[%clk 0:03:00.3]} 5. Nxd4 {[%clk 0:02:59.7]}
5... Qc7 {[%clk 0:03:00.5]} 6. g3 {[%clk 0:03:00]} 6... Bb4 {[%clk 0:02:58.3]}
7. Bd2 {[%clk 0:02:54.2]} 7... Nf6 {[%clk 0:02:57.5]} 8. Bg2 {[%clk 0:02:54.3]}
8... Nc6 {[%clk 0:02:58.2]} 9. Nxc6 {[%clk 0:02:53.2]} 9... dxc6 {[%clk
0:02:59.1]} 10. O-O {[%clk 0:02:52.6]} 10... O-O {[%clk 0:02:59.1]} 11. Bf4
{[%clk 0:02:48.7]} 11... e5 {[%clk 0:02:58.1]} 12. Bg5 {[%clk 0:02:49.4]} 12...
Be7 {[%clk 0:02:56.6]} 13. a4 {[%clk 0:02:43.2]} 13... Be6 {[%clk 0:02:52.7]}
14. Qe2 {[%clk 0:02:26.4]} 14... b5 {[%clk 0:02:47.9]} 15. axb5 {[%clk 0:02:17]}
15... axb5 {[%clk 0:02:48.8]} 16. f4 {[%clk 0:02:06.3]} 16... Bc4 {[%clk
0:02:44.8]} 17. Qe1 {[%clk 0:02:05.3]} 17... Rxa1 {[%clk 0:02:35.7]} 18. Qxa1
{[%clk 0:01:57.9]} 18... Bxf1 {[%clk 0:02:35.5]} 19. Qxf1 {[%clk 0:01:57.9]}
19... Bc5+ {[%clk 0:02:26.9]} 20. Kh1 {[%clk 0:01:57.7]} 20... Ng4 {[%clk
0:02:25.8]} 21. Nd1 {[%clk 0:01:10.2]} 21... f6 {[%clk 0:02:20.2]} 22. Bh4
{[%clk 0:01:09.8]} 22... Rd8 {[%clk 0:02:12.2]} 23. h3 {[%clk 0:01:04.9]} 23...
Rxd1 {[%clk 0:02:11]} 24. Qxd1 {[%clk 0:01:05.8]} 0-1

[Event "Early-Titled-Tuesday-Blitz-February-13-2024"]
[Site "Chess.com"]
[Date "2024.02.13"]
[Round "6"]
[White "artooon"]
[Black "Arystanner"]
[Result "1-0"]
[WhiteElo "3030"]
[BlackElo "2814"]
[TimeControl "180+1"]
[EndTime "9:06:39 PST"]
[Termination "artooon won by resignation"]

1. e4 {[%clk 0:02:58.7]} 1... e5 {[%clk 0:03:00.2]} 2. Nf3 {[%clk 0:02:58.5]}
2... Nc6 {[%clk 0:03:00.8]} 3. Bc4 {[%clk 0:02:59.3]} 3... Nf6 {[%clk
0:03:00.7]} 4. Ng5 {[%clk 0:02:59.3]} 4... d5 {[%clk 0:02:56.8]} 5. exd5 {[%clk
0:03:00.2]} 5... Nd4 {[%clk 0:02:46.5]} 6. c3 {[%clk 0:03:00.3]} 6... b5 {[%clk
0:02:46.9]} 7. Bf1 {[%clk 0:03:00.9]} 7... Nf5 {[%clk 0:02:24.9]} 8. Bxb5+
{[%clk 0:02:58.3]} 8... Bd7 {[%clk 0:02:25.5]} 9. Qa4 {[%clk 0:02:51.8]} 9...
Bd6 {[%clk 0:01:57.5]} 10. Bxd7+ {[%clk 0:02:44.4]} 10... Nxd7 {[%clk
0:01:57.6]} 11. Ne6 {[%clk 0:02:44.9]} 11... Qe7 {[%clk 0:01:43.3]} 12. g4
{[%clk 0:02:18.8]} 12... Nh4 {[%clk 0:01:35.4]} 13. Nxg7+ {[%clk 0:02:13.3]}
13... Kf8 {[%clk 0:01:32]} 14. Nf5 {[%clk 0:02:14]} 14... Nxf5 {[%clk
0:01:32.4]} 15. gxf5 {[%clk 0:02:14.9]} 15... e4 {[%clk 0:01:33]} 16. d3 {[%clk
0:01:46.9]} 16... Nc5 {[%clk 0:01:26]} 17. Bh6+ {[%clk 0:01:42.7]} 17... Kg8
{[%clk 0:01:26.5]} 18. Rg1+ {[%clk 0:01:42]} 1-0

[Event "Early-Titled-Tuesday-Blitz-February-13-2024"]
[Site "Chess.com"]
[Date "2024.02.13"]
[Round "6"]
[White "shrek4life02"]
[Black "colegiodemadrid"]
[Result "0-1"]
[WhiteElo "2682"]
[BlackElo "2547"]
[TimeControl "180+1"]
[EndTime "9:07:16 PST"]
[Termination "colegiodemadrid won by checkmate"]

1. e4 {[%clk 0:02:57.7]} 1... c6 {[%clk 0:02:49.9]} 2. d4 {[%clk 0:02:56.7]}
2... d5 {[%clk 0:02:49.1]} 3. e5 {[%clk 0:02:57.4]} 3... c5 {[%clk 0:02:46.7]}
4. dxc5 {[%clk 0:02:53.2]} 4... e6 {[%clk 0:02:42.9]} 5. a3 {[%clk 0:02:52.5]}
5... Bxc5 {[%clk 0:02:42.2]} 6. b4 {[%clk 0:02:52.7]} 6... Bf8 {[%clk 0:02:41]}
7. Nf3 {[%clk 0:02:52.6]} 7... Nd7 {[%clk 0:02:38]} 8. Bd3 {[%clk 0:02:52.2]}
8... a5 {[%clk 0:02:37.5]} 9. b5 {[%clk 0:02:49.2]} 9... Ne7 {[%clk 0:02:32.5]}
10. a4 {[%clk 0:02:47.2]} 10... Ng6 {[%clk 0:02:32.4]} 11. Qe2 {[%clk
0:02:45.8]} 11... Qc7 {[%clk 0:02:31.1]} 12. Bxg6 {[%clk 0:02:32.6]} 12... fxg6
{[%clk 0:02:22.8]} 13. O-O {[%clk 0:02:28.9]} 13... Be7 {[%clk 0:02:22]} 14. Nd4
{[%clk 0:02:27.3]} 14... Qxe5 {[%clk 0:02:06.5]} 15. Qd1 {[%clk 0:02:17.3]}
15... Bf6 {[%clk 0:02:00.5]} 16. c3 {[%clk 0:02:12.2]} 16... Nc5 {[%clk
0:01:57]} 17. Re1 {[%clk 0:02:08.8]} 17... Qc7 {[%clk 0:01:56.5]} 18. Ba3 {[%clk
0:02:00.9]} 18... O-O {[%clk 0:01:47]} 19. Nd2 {[%clk 0:01:57.7]} 19... e5
{[%clk 0:01:40.6]} 20. N4b3 {[%clk 0:01:53.1]} 20... b6 {[%clk 0:01:38]} 21.
Nxc5 {[%clk 0:01:50.7]} 21... bxc5 {[%clk 0:01:37.7]} 22. c4 {[%clk 0:01:51.4]}
22... e4 {[%clk 0:01:33.2]} 23. Rc1 {[%clk 0:01:47.1]} 23... Bd4 {[%clk
0:01:31.8]} 24. Rf1 {[%clk 0:01:45.6]} 24... Qf4 {[%clk 0:01:30.8]} 25. Qe2
{[%clk 0:01:41.2]} 25... Bg4 {[%clk 0:01:26.9]} 26. Qe1 {[%clk 0:01:41.6]} 26...
e3 {[%clk 0:01:26.1]} 27. fxe3 {[%clk 0:01:36.7]} 27... Qxe3+ {[%clk 0:01:25.9]}
28. Kh1 {[%clk 0:01:37.3]} 28... Rxf1+ {[%clk 0:01:22.4]} 29. Nxf1 {[%clk
0:01:33.6]} 29... Qg1# {[%clk 0:01:21.7]} 0-1

[Event "Early-Titled-Tuesday-Blitz-February-13-2024"]
[Site "Chess.com"]
[Date "2024.02.13"]
[Round "6"]
[White "Szparu"]
[Black "toog"]
[Result "1-0"]
[WhiteElo "2797"]
[BlackElo "2567"]
[TimeControl "180+1"]
[EndTime "9:07:31 PST"]
[Termination "Szparu won by checkmate"]

1. e4 {[%clk 0:03:00.9]} 1... c5 {[%clk 0:02:56.7]} 2. Nf3 {[%clk 0:03:00.4]}
2... d6 {[%clk 0:02:57.1]} 3. d4 {[%clk 0:02:59.4]} 3... cxd4 {[%clk 0:02:58]}
4. Qxd4 {[%clk 0:02:59.7]} 4... Nc6 {[%clk 0:02:56.3]} 5. Bb5 {[%clk 0:02:59.1]}
5... Bd7 {[%clk 0:02:56.4]} 6. Qd3 {[%clk 0:02:58.1]} 6... g6 {[%clk 0:02:54.9]}
7. O-O {[%clk 0:02:57.1]} 7... Bg7 {[%clk 0:02:54.9]} 8. h3 {[%clk 0:02:48.3]}
8... Nf6 {[%clk 0:02:52.4]} 9. c4 {[%clk 0:02:38.5]} 9... a6 {[%clk 0:02:51.4]}
10. Bxc6 {[%clk 0:02:31.3]} 10... Bxc6 {[%clk 0:02:52.3]} 11. Nc3 {[%clk
0:02:31.5]} 11... O-O {[%clk 0:02:50.4]} 12. Nd4 {[%clk 0:02:25.6]} 12... Nd7
{[%clk 0:02:42.4]} 13. Be3 {[%clk 0:02:25.2]} 13... Rc8 {[%clk 0:02:39.2]} 14.
Rac1 {[%clk 0:02:20.2]} 14... Nc5 {[%clk 0:02:22.3]} 15. Qb1 {[%clk 0:02:15.1]}
15... Ne6 {[%clk 0:02:19.2]} 16. Rfd1 {[%clk 0:02:10]} 16... Nxd4 {[%clk
0:02:18.8]} 17. Bxd4 {[%clk 0:02:10.9]} 17... Bxd4 {[%clk 0:02:18.6]} 18. Rxd4
{[%clk 0:02:11.8]} 18... Qb6 {[%clk 0:02:18.5]} 19. Rcd1 {[%clk 0:02:02.7]}
19... Qa7 {[%clk 0:02:14.7]} 20. Qc1 {[%clk 0:01:58.3]} 20... b5 {[%clk
0:02:13.9]} 21. Qh6 {[%clk 0:01:57.9]} 21... bxc4 {[%clk 0:02:06.6]} 22. e5
{[%clk 0:01:53.6]} 22... f6 {[%clk 0:01:48.1]} 23. e6 {[%clk 0:01:27.9]} 23...
g5 {[%clk 0:01:30.9]} 24. h4 {[%clk 0:01:28.1]} 24... Qc5 {[%clk 0:01:26.7]} 25.
Nd5 {[%clk 0:01:27.8]} 25... Bxd5 {[%clk 0:01:11.2]} 26. Rxd5 {[%clk 0:01:28.7]}
26... Qb4 {[%clk 0:01:06.2]} 27. hxg5 {[%clk 0:01:28.8]} 27... Qxb2 {[%clk
0:01:05.7]} 28. g6 {[%clk 0:01:29.1]} 28... f5 {[%clk 0:01:03.5]} 29. Qxh7#
{[%clk 0:01:29]} 1-0

[Event "Early-Titled-Tuesday-Blitz-February-13-2024"]
[Site "Chess.com"]
[Date "2024.02.13"]
[Round "6"]
[White "ChristopherYoo"]
[Black "Korchmar_Vasiliy"]
[Result "1-0"]
[WhiteElo "2973"]
[BlackElo "2729"]
[TimeControl "180+1"]
[EndTime "9:07:32 PST"]
[Termination "ChristopherYoo won by resignation"]

1. d4 {[%clk 0:03:00.9]} 1... d5 {[%clk 0:02:59.2]} 2. Nf3 {[%clk 0:02:59.1]}
2... Nf6 {[%clk 0:02:59]} 3. c4 {[%clk 0:02:59]} 3... c6 {[%clk 0:02:59.5]} 4.
g3 {[%clk 0:02:58.9]} 4... g6 {[%clk 0:02:56.2]} 5. Bg2 {[%clk 0:02:59.3]} 5...
Bg7 {[%clk 0:02:56.8]} 6. O-O {[%clk 0:02:59]} 6... O-O {[%clk 0:02:57.5]} 7.
cxd5 {[%clk 0:02:42]} 7... cxd5 {[%clk 0:02:57.5]} 8. Ne5 {[%clk 0:02:42.8]}
8... Ng4 {[%clk 0:02:54.3]} 9. Nc3 {[%clk 0:02:41.8]} 9... Nxe5 {[%clk
0:02:42.7]} 10. dxe5 {[%clk 0:02:42.7]} 10... d4 {[%clk 0:02:39]} 11. Nd5 {[%clk
0:02:27.9]} 11... Nc6 {[%clk 0:02:28.2]} 12. Bg5 {[%clk 0:02:18.6]} 12... h6
{[%clk 0:02:24.3]} 13. Bd2 {[%clk 0:02:07.6]} 13... Nxe5 {[%clk 0:02:15.7]} 14.
Rc1 {[%clk 0:02:07]} 14... Nc6 {[%clk 0:02:11.1]} 15. b4 {[%clk 0:02:03.1]}
15... e6 {[%clk 0:01:52.1]} 16. Nf4 {[%clk 0:02:01.3]} 16... e5 {[%clk
0:01:50.4]} 17. b5 {[%clk 0:01:56.9]} 17... Na5 {[%clk 0:01:27.8]} 18. Nd5
{[%clk 0:01:54.9]} 18... Rb8 {[%clk 0:01:20.3]} 19. Bb4 {[%clk 0:01:49.1]} 19...
Be6 {[%clk 0:01:02.8]} 20. Nc7 {[%clk 0:01:48.1]} 20... b6 {[%clk 0:00:50.9]}
21. Nxe6 {[%clk 0:01:47.3]} 21... fxe6 {[%clk 0:00:51.8]} 22. Bxf8 {[%clk
0:01:47.3]} 22... Qxf8 {[%clk 0:00:50.7]} 23. Rc7 {[%clk 0:01:47.2]} 23... Rd8
{[%clk 0:00:47.8]} 24. Rxa7 {[%clk 0:01:45.3]} 24... Nc4 {[%clk 0:00:47.6]} 25.
Qd3 {[%clk 0:01:45]} 1-0

[Event "Early-Titled-Tuesday-Blitz-February-13-2024"]
[Site "Chess.com"]
[Date "2024.02.13"]
[Round "6"]
[White "treadstone_71"]
[Black "SouS007"]
[Result "1-0"]
[WhiteElo "2309"]
[BlackElo "2491"]
[TimeControl "180+1"]
[EndTime "9:07:33 PST"]
[Termination "treadstone_71 won by resignation"]

1. e4 {[%clk 0:03:00.9]} 1... e6 {[%clk 0:03:00.1]} 2. d4 {[%clk 0:02:59.9]}
2... d5 {[%clk 0:03:00.3]} 3. Nc3 {[%clk 0:02:59.9]} 3... dxe4 {[%clk
0:03:00.4]} 4. Nxe4 {[%clk 0:02:59.4]} 4... Bd7 {[%clk 0:03:00.7]} 5. Nf3 {[%clk
0:02:57.3]} 5... Bc6 {[%clk 0:03:00.6]} 6. Bd3 {[%clk 0:02:48.5]} 6... Nd7
{[%clk 0:03:00.6]} 7. O-O {[%clk 0:02:47.5]} 7... Ngf6 {[%clk 0:03:00.5]} 8. Ng3
{[%clk 0:02:46.4]} 8... Be7 {[%clk 0:03:00]} 9. b3 {[%clk 0:02:40.7]} 9... O-O
{[%clk 0:02:55.7]} 10. Bb2 {[%clk 0:02:40.4]} 10... Nd5 {[%clk 0:02:52.8]} 11.
c4 {[%clk 0:01:55.8]} 11... Nf4 {[%clk 0:02:52.5]} 12. Bb1 {[%clk 0:01:55.8]}
12... Bf6 {[%clk 0:02:39.1]} 13. Ne4 {[%clk 0:01:44]} 13... b6 {[%clk
0:02:22.8]} 14. Qc2 {[%clk 0:01:32.3]} 14... g6 {[%clk 0:02:15.8]} 15. Nxf6+
{[%clk 0:01:31.3]} 15... Qxf6 {[%clk 0:02:15.9]} 16. d5 {[%clk 0:01:25.7]} 16...
e5 {[%clk 0:02:00.1]} 17. dxc6 {[%clk 0:01:25.1]} 17... Qxc6 {[%clk 0:02:01]}
18. Qe4 {[%clk 0:01:18.9]} 18... Qe6 {[%clk 0:02:00.4]} 19. Nxe5 {[%clk
0:01:06.2]} 19... Rae8 {[%clk 0:02:00.1]} 20. Qxf4 {[%clk 0:01:02.1]} 20... Nxe5
{[%clk 0:02:00.1]} 21. Bxe5 {[%clk 0:00:57.8]} 21... Qxe5 {[%clk 0:02:01]} 22.
Qxe5 {[%clk 0:00:58.3]} 22... Rxe5 {[%clk 0:02:01.9]} 23. Bd3 {[%clk 0:00:58.6]}
23... Rd8 {[%clk 0:02:01.9]} 24. Rad1 {[%clk 0:00:58.4]} 24... Re6 {[%clk
0:02:00.9]} 25. f3 {[%clk 0:00:57.3]} 25... Red6 {[%clk 0:02:00.6]} 26. Bc2
{[%clk 0:00:57.4]} 26... Kg7 {[%clk 0:01:58.8]} 27. Kf2 {[%clk 0:00:56.4]} 27...
Kf6 {[%clk 0:01:58.1]} 28. Rxd6+ {[%clk 0:00:56]} 28... Rxd6 {[%clk 0:01:59]}
29. Rd1 {[%clk 0:00:56.1]} 29... Re6 {[%clk 0:01:58.8]} 30. Rd7 {[%clk
0:00:51.7]} 30... Rc6 {[%clk 0:01:56.6]} 31. Be4 {[%clk 0:00:49.5]} 31... Rc5
{[%clk 0:01:56.9]} 32. Bd5 {[%clk 0:00:49.6]} 32... c6 {[%clk 0:01:55.7]} 33. b4
{[%clk 0:00:47.9]} 1-0

[Event "Early-Titled-Tuesday-Blitz-February-13-2024"]
[Site "Chess.com"]
[Date "2024.02.13"]
[Round "6"]
[White "Matibar"]
[Black "SHIVACalypso"]
[Result "1-0"]
[WhiteElo "2759"]
[BlackElo "2515"]
[TimeControl "180+1"]
[EndTime "9:07:42 PST"]
[Termination "Matibar won by resignation"]

1. Nf3 {[%clk 0:03:00.9]} 1... Nf6 {[%clk 0:02:57.3]} 2. c4 {[%clk 0:02:59.6]}
2... e6 {[%clk 0:02:57]} 3. g3 {[%clk 0:02:58.9]} 3... d5 {[%clk 0:02:57.5]} 4.
Bg2 {[%clk 0:02:59.8]} 4... Be7 {[%clk 0:02:55.2]} 5. O-O {[%clk 0:02:57.2]}
5... O-O {[%clk 0:02:55.8]} 6. b3 {[%clk 0:02:55.7]} 6... b6 {[%clk 0:02:53.2]}
7. Bb2 {[%clk 0:02:52.3]} 7... Bb7 {[%clk 0:02:51.2]} 8. e3 {[%clk 0:02:51.4]}
8... Nbd7 {[%clk 0:02:50.8]} 9. Nc3 {[%clk 0:02:48.4]} 9... c5 {[%clk
0:02:49.8]} 10. cxd5 {[%clk 0:02:44.6]} 10... Nxd5 {[%clk 0:02:47.5]} 11. Nxd5
{[%clk 0:02:44]} 11... Bxd5 {[%clk 0:02:48.4]} 12. Qe2 {[%clk 0:02:41.5]} 12...
Bf6 {[%clk 0:02:48.2]} 13. d4 {[%clk 0:02:40.6]} 13... Rc8 {[%clk 0:02:46.5]}
14. Rfd1 {[%clk 0:02:33.9]} 14... Qc7 {[%clk 0:02:36]} 15. e4 {[%clk 0:02:30.7]}
15... Bb7 {[%clk 0:02:34.6]} 16. Rac1 {[%clk 0:02:30]} 16... Qb8 {[%clk
0:02:33]} 17. h4 {[%clk 0:02:15.1]} 17... cxd4 {[%clk 0:02:26.7]} 18. Bxd4
{[%clk 0:02:16]} 18... Bxd4 {[%clk 0:02:20.4]} 19. Nxd4 {[%clk 0:02:16.9]} 19...
Nc5 {[%clk 0:02:07.5]} 20. b4 {[%clk 0:01:49.8]} 20... Na4 {[%clk 0:01:59.9]}
21. Qe3 {[%clk 0:01:45]} 21... Rfd8 {[%clk 0:01:49.8]} 22. h5 {[%clk 0:01:39.6]}
22... Qe5 {[%clk 0:01:45.9]} 23. Rxc8 {[%clk 0:01:25.5]} 23... Rxc8 {[%clk
0:01:44.8]} 24. h6 {[%clk 0:01:20.7]} 24... Nc3 {[%clk 0:01:38.1]} 25. Rd2
{[%clk 0:01:14.9]} 25... Nxe4 {[%clk 0:01:28.7]} 26. Re2 {[%clk 0:01:09.2]}
26... Rc1+ {[%clk 0:01:27.6]} 27. Qxc1 {[%clk 0:01:07.9]} 27... Qxd4 {[%clk
0:01:22.4]} 28. Rxe4 {[%clk 0:01:07.1]} 1-0

[Event "Early-Titled-Tuesday-Blitz-February-13-2024"]
[Site "Chess.com"]
[Date "2024.02.13"]
[Round "6"]
[White "onnoelgersma"]
[Black "atomicmate123"]
[Result "1-0"]
[WhiteElo "2541"]
[BlackElo "2348"]
[TimeControl "180+1"]
[EndTime "9:07:44 PST"]
[Termination "onnoelgersma won by resignation"]

1. c3 {[%clk 0:03:00.9]} 1... d5 {[%clk 0:02:58.5]} 2. Nf3 {[%clk 0:02:59.9]}
2... c5 {[%clk 0:02:56.3]} 3. d4 {[%clk 0:03:00]} 3... Nc6 {[%clk 0:02:55.4]} 4.
dxc5 {[%clk 0:02:57.4]} 4... e5 {[%clk 0:02:54.5]} 5. b4 {[%clk 0:02:57.6]} 5...
a6 {[%clk 0:02:42.7]} 6. e3 {[%clk 0:02:52.8]} 6... Bg4 {[%clk 0:02:42.3]} 7.
Be2 {[%clk 0:02:53.1]} 7... Nf6 {[%clk 0:02:40.5]} 8. Bb2 {[%clk 0:02:50.4]}
8... Be7 {[%clk 0:02:36.2]} 9. Nbd2 {[%clk 0:02:50.6]} 9... O-O {[%clk
0:02:35.2]} 10. a3 {[%clk 0:02:51.1]} 10... e4 {[%clk 0:02:34.5]} 11. Nd4 {[%clk
0:02:50.7]} 11... Bxe2 {[%clk 0:02:33.6]} 12. Qxe2 {[%clk 0:02:50.3]} 12... Ne5
{[%clk 0:02:33.2]} 13. O-O {[%clk 0:02:46.1]} 13... Nd3 {[%clk 0:02:31.6]} 14.
Rab1 {[%clk 0:02:45.9]} 14... a5 {[%clk 0:02:28.5]} 15. Nf5 {[%clk 0:02:23.7]}
15... Qd7 {[%clk 0:02:11.8]} 16. Nxe7+ {[%clk 0:02:22.4]} 16... Qxe7 {[%clk
0:02:11.5]} 17. Nb3 {[%clk 0:02:15.9]} 17... Qe5 {[%clk 0:02:00.6]} 18. Nd4
{[%clk 0:02:14]} 18... Qg5 {[%clk 0:01:51.7]} 19. f4 {[%clk 0:02:05.9]} 19...
Qg4 {[%clk 0:01:44.5]} 20. Qd2 {[%clk 0:01:58.1]} 20... Nd7 {[%clk 0:01:03.4]}
21. h3 {[%clk 0:01:41.5]} 21... Qg3 {[%clk 0:01:01.8]} 22. Nf5 {[%clk
0:01:39.1]} 22... Qf3 {[%clk 0:00:34.2]} 23. gxf3 {[%clk 0:01:37.1]} 1-0

[Event "Early-Titled-Tuesday-Blitz-February-13-2024"]
[Site "Chess.com"]
[Date "2024.02.13"]
[Round "6"]
[White "barbara25"]
[Black "MaxLeto"]
[Result "0-1"]
[WhiteElo "2294"]
[BlackElo "2514"]
[TimeControl "180+1"]
[EndTime "9:07:44 PST"]
[Termination "MaxLeto won by resignation"]

1. e4 {[%clk 0:03:00.9]} 1... c5 {[%clk 0:03:00]} 2. Nf3 {[%clk 0:03:00.5]} 2...
d6 {[%clk 0:03:00.5]} 3. d4 {[%clk 0:03:00.2]} 3... cxd4 {[%clk 0:03:01.4]} 4.
Nxd4 {[%clk 0:02:59.6]} 4... Nf6 {[%clk 0:03:02.1]} 5. Nc3 {[%clk 0:02:56.2]}
5... a6 {[%clk 0:03:03]} 6. Be3 {[%clk 0:02:53.4]} 6... Ng4 {[%clk 0:03:02.8]}
7. Bc1 {[%clk 0:02:51.8]} 7... Nf6 {[%clk 0:03:02.9]} 8. h3 {[%clk 0:02:51.1]}
8... Qc7 {[%clk 0:03:01.5]} 9. Be3 {[%clk 0:02:50.7]} 9... b5 {[%clk 0:03:00.7]}
10. f3 {[%clk 0:02:48.4]} 10... Bb7 {[%clk 0:03:01.1]} 11. Qd2 {[%clk
0:02:48.2]} 11... Nbd7 {[%clk 0:02:59.3]} 12. O-O-O {[%clk 0:02:48.5]} 12... e6
{[%clk 0:02:58.4]} 13. g4 {[%clk 0:02:48.6]} 13... h6 {[%clk 0:02:53.6]} 14. Kb1
{[%clk 0:02:48.9]} 14... b4 {[%clk 0:02:47.6]} 15. Nce2 {[%clk 0:02:48.2]} 15...
d5 {[%clk 0:02:48.2]} 16. exd5 {[%clk 0:02:36.3]} 16... Nxd5 {[%clk 0:02:49.1]}
17. Bg2 {[%clk 0:02:36.1]} 17... N7b6 {[%clk 0:02:36.1]} 18. b3 {[%clk
0:02:33.1]} 18... Nxe3 {[%clk 0:02:32.2]} 19. Qxe3 {[%clk 0:02:32.9]} 19... Nd5
{[%clk 0:02:33.1]} 20. Qd2 {[%clk 0:02:33.1]} 20... Bd6 {[%clk 0:02:16.9]} 21.
h4 {[%clk 0:02:20.4]} 21... g6 {[%clk 0:01:33.4]} 22. h5 {[%clk 0:01:46.3]}
22... g5 {[%clk 0:01:32.4]} 23. Rde1 {[%clk 0:01:38.7]} 23... O-O {[%clk
0:01:27.5]} 24. Nc1 {[%clk 0:01:23.9]} 24... Bf4 {[%clk 0:01:22.8]} 25. Qd3
{[%clk 0:01:20.9]} 25... Rfd8 {[%clk 0:01:18.9]} 26. Rd1 {[%clk 0:01:14.2]}
26... Nc3+ {[%clk 0:01:18.9]} 27. Ka1 {[%clk 0:01:14]} 27... Nxd1 {[%clk
0:01:15.5]} 28. Rxd1 {[%clk 0:01:14]} 28... Rxd4 {[%clk 0:01:13.6]} 29. Qxd4
{[%clk 0:01:13]} 29... Be5 {[%clk 0:01:14.2]} 0-1